bitfinex/quotes_ETHUSD_20250403
["timestamp","ask_amount","ask_price","bid_price","bid_amount"]
[1743696343101,8.58763,1789.7,1789.0,5.5896]
[1743696343102,3.0,1789.7,1789.1,5.58931]
[1743696343305,3.0,1789.7,1789.6,5.58784]
[1743696343495,9.574,1789.7,1789.6,5.58784]
[1743696344509,9.574,1789.7,1789.5,11.17605]
[1743696344871,10.3653,1789.7,1789.4,5.58843]
[1743696345104,15.953,1789.7,1789.3,5.58876]
[1743696345510,10.3353,1789.7,1789.4,5.58828]
[1743696345674,10.3353,1789.7,1789.3,11.17736]
[1743696345880,10.3353,1789.7,1789.4,5.58837]
[1743696346714,15.92295,1789.7,1789.3,5.58863]
[1743696346878,1.592295,1789.6,1789.3,5.58863]
[1743696347410,7.180145,1789.6,1789.2,11.17799]
[1743696347798,3.0,1789.5,1789.2,5.58894]
[1743696348013,0.7664,1789.4,1788.9,5.5899]
[1743696348308,3.0,1789.2,1789.0,5.58956]
[1743696348523,6.525,1789.1,1788.9,11.17996]
[1743696349214,6.525,1789.1,1788.9,5.58998]
[1743696349580,6.525,1789.1,1789.0,5.58971]
[1743696349780,6.525,1789.1,1788.9,5.58986]
[1743696350514,3.7671,1789.0,1788.4,6.37806]
[1743696350811,3.7671,1789.0,1788.5,11.18224]
[1743696350812,5.59033,1788.9,1788.5,11.18224]
[1743696351126,0.8171,1789.9,1789.0,5.58971]
[1743696351326,0.8171,1789.9,1789.5,11.17601]
[1743696351527,5.58731,1789.8,1789.4,11.17676]
[1743696351686,3.0,1789.8,1789.5,5.58803]
[1743696351881,3.0,1789.8,1789.6,5.5878]
[1743696352202,0.8171,1789.9,1789.7,5.58734]
[1743696352383,6.635,1789.8,1789.6,5.5878]
[1743696352716,12.96744,1789.8,1789.4,5.58843]
[1743696352877,12.96744,1789.8,1789.4,11.17677]
[1743696353081,40.25,1789.7,1789.4,5.58834]
[1743696353327,40.25,1789.7,1789.2,5.58907]
[1743696353482,40.25,1789.7,1789.6,5.58784]
[1743696353810,40.25,1789.7,1789.6,6.36314]
[1743696354312,40.25,1789.7,1789.6,8.117058]
[1743696355285,40.25,1789.7,1789.6,5.58784]
[1743696355632,40.25,1789.7,1789.4,5.58842]
[1743696355783,40.25,1789.7,1789.4,11.17672]
[1743696355982,40.25,1789.7,1789.5,5.58813]
[1743696356224,40.25,1789.7,1789.6,6.40724]
[1743696356387,40.25,1789.7,1789.6,5.58784]
[1743696356806,40.25,1789.7,1789.6,6.53454664]
[1743696357010,0.05,1789.9,1789.8,5.58721]
[1743696357185,0.05,1789.9,1789.8,5.64307023]
[1743696357933,0.05,1789.9,1789.8,5.58721]
[1743696359233,0.05,1789.9,1789.7,5.5874]
[1743696359601,0.05,1789.9,1789.5,5.58803]
[1743696359786,0.8608,1789.9,1789.8,5.58721]
[1743696359982,0.8608,1789.9,1789.5,5.58815]
[1743696360227,6.4477,1789.9,1789.5,5.588]
[1743696360434,0.8608,1789.9,1789.6,5.58772]
[1743696360633,0.8608,1789.9,1789.6,5.58771]
[1743696360936,0.8608,1789.9,1789.7,5.58739]
[1743696362337,8.58827,1789.5,1789.1,5.58923]
[1743696362538,8.58827,1789.5,1788.9,0.7805]
[1743696362539,3.0,1789.3,1788.9,6.37046]
[1743696362735,0.8118,1789.2,1788.9,5.58996]
[1743696362907,0.8118,1789.2,1788.9,5.58986]
[1743696363103,3.0,1789.3,1789.1,5.58917]
[1743696363313,6.7817,1789.6,1789.1,0.558917]
[1743696363602,9.577,1789.5,1789.4,5.58846]
[1743696363848,0.81,1789.8,1789.7,5.58752]
[1743696364163,6.582,1789.8,1789.7,5.58752]
[1743696364291,0.05,1789.9,1789.8,5.58721]
[1743696364490,0.05,1789.9,1789.8,5.64308004]
[1743696364719,6.633,1789.9,1789.8,6.76614004]
[1743696364922,0.05,1789.9,1789.8,6.7661379]
[1743696365198,0.05,1789.9,1789.8,6.71027]
[1743696365740,0.05,1789.9,1789.8,7.55783325]
[1743696366293,0.05,1789.9,1789.8,7.50197]
[1743696367639,40.241,1790.8,1790.1,6.41948]
[1743696367845,40.241,1790.8,1790.7,5.5844]
[1743696369932,40.241,1790.8,1790.6,5.58471]
[1743696370097,40.241,1790.8,1790.7,5.5844]
[1743696371717,40.241,1790.8,1790.6,5.58471]
[1743696372033,40.241,1790.8,1790.7,5.5844]
[1743696372544,40.241,1790.8,1790.6,11.16912]
[1743696372715,40.241,1790.8,1790.6,5.58452]
[1743696372914,40.241,1790.8,1790.5,11.16985]
[1743696373226,46.65018,1790.8,1790.4,5.58534]
[1743696373546,46.65018,1790.8,1790.3,5.58565]
[1743696373551,3.0,1790.7,1790.3,5.58565]
[1743696373730,5.58488,1790.6,1790.2,11.17167]
[1743696373931,6.509,1790.5,1790.3,5.58561]
[1743696374645,0.7606,1790.4,1790.0,5.58659]
[1743696374845,0.7606,1790.4,1790.1,5.5861]
[1743696375210,5.58577,1790.3,1789.9,5.58679]
[1743696375410,6.00788092,1790.3,1789.9,5.58679]
[1743696375640,6.00788092,1790.3,1789.8,5.58721]
[1743696375641,5.58607,1790.2,1789.8,5.58721]
[1743696375946,5.58641,1790.1,1789.7,11.17486]
[1743696376240,6.498,1790.0,1789.7,5.58736]
[1743696376741,12.0847,1790.0,1789.7,5.58736]
[1743696376943,5.58751,1789.8,1789.4,5.58831]
[1743696377115,11.17493,1789.8,1789.4,5.58829]
[1743696377317,5.58762,1789.7,1789.4,5.58829]
[1743696377751,5.58742,1789.8,1789.5,5.58809]
[1743696377912,5.58782,1789.7,1789.3,11.17754]
[1743696378431,11.17553,1789.7,1789.3,5.58877]
[1743696378634,11.17543,1789.7,1789.3,5.58864]
[1743696378837,5.58771,1789.7,1789.3,5.58862]
[1743696379042,5.58801,1789.6,1789.2,11.17785]
[1743696379354,6.476,1789.5,1789.3,5.58864]
[1743696379539,6.476,1789.5,1789.3,11.17728]
[1743696379733,6.476,1789.5,1789.3,11.17727]
[1743696380049,6.476,1789.5,1789.4,5.58846]
[1743696380252,6.476,1789.5,1789.3,5.58863]
[1743696380420,6.476,1789.5,1789.4,5.58846]
[1743696380968,3.0,1789.8,1789.6,11.17538]
[1743696381119,6.452,1789.7,1789.6,5.58769]
[1743696381734,6.452,1789.7,1789.5,5.58802]
[1743696382064,6.452,1789.7,1789.5,11.17599]
[1743696382233,6.452,1789.7,1789.4,5.58846]
[1743696382432,5.58946,1789.1,1788.3,7.515002]
[1743696382622,3.0,1789.6,1788.4,5.59131]
[1743696382623,5.59017,1788.9,1788.4,5.59131]
[1743696382824,6.47,1788.8,1788.4,11.18289]
[1743696383059,12.06034,1788.8,1788.4,12.4365792]
[1743696383256,12.06034,1788.8,1788.4,12.4365392]
[1743696383419,6.47,1788.8,1788.5,5.59127]
[1743696383623,6.47,1788.8,1788.6,5.59086]
[1743696384338,6.47,1788.8,1788.4,6.8453292]
[1743696384667,6.47,1788.8,1788.6,5.59096]
[1743696385172,41.0011,1789.0,1788.7,5.59051]
[1743696385368,41.0011,1789.0,1788.8,5.59013]
[1743696385369,6.468,1788.9,1788.8,5.59013]
[1743696386054,12.05813,1788.9,1788.5,5.59114]
[1743696386436,12.87833,1788.9,1788.5,11.18224]
[1743696386636,12.87833,1788.9,1788.5,5.5911]
[1743696386849,5.59049,1788.8,1788.4,5.59158]
[1743696387187,5.59049,1788.8,1788.4,5.59142]
[1743696387687,5.59107,1788.6,1788.1,0.05]
[1743696387831,12.01147,1788.5,1788.1,5.64241]
[1743696388032,12.01147,1788.5,1788.1,0.05]
[1743696388033,8.59213,1788.3,1788.1,0.05]
[1743696388270,5.59221,1788.2,1788.1,0.05]
[1743696388974,14.18426,1788.3,1788.1,0.05]
[1743696389179,8.59221,1788.2,1788.1,0.05]
[1743696389471,28.356607,1788.2,1788.1,0.05]
[1743696389639,5.59345,1787.9,1787.5,5.59438]
[1743696390138,3.0,1787.8,1787.5,5.59429]
[1743696390338,6.453,1787.7,1787.5,5.59427]
[1743696390837,6.453,1787.7,1787.6,5.59409]
[1743696391046,40.249,1787.8,1787.7,6.36467]
[1743696391371,46.69,1787.8,1787.7,6.36467]
[1743696392195,46.69,1787.8,1787.6,5.59409]
[1743696392356,47.4571,1787.8,1787.5,5.59429]
[1743696392754,53.05057,1787.8,1787.5,5.59429]
[1743696392956,53.69766887,1787.8,1787.5,5.59429]
[1743696393993,5.59426,1787.6,1787.3,5.59488]
[1743696394500,3.9452,1787.7,1787.4,5.5946]
[1743696394661,3.9452,1787.7,1787.4,11.18912]
[1743696394865,3.9452,1787.7,1787.4,5.59454]
[1743696395092,15.13295,1787.7,1787.3,5.595]
[1743696395277,9.53898,1787.7,1787.4,5.59457]
[1743696395477,6.432,1787.6,1787.5,5.5944]
[1743696395660,6.432,1787.6,1787.3,5.59494]
[1743696395988,6.432,1787.6,1787.5,5.5944]
[1743696396903,41.43232833,1787.8,1787.6,5.59392]
[1743696396904,40.249,1787.8,1787.6,5.59392]
[1743696397073,6.425,1787.7,1787.6,5.59392]
[1743696397892,6.425,1787.7,1787.4,5.59456]
[1743696398165,12.01883,1787.7,1787.4,5.59456]
[1743696398370,12.01883,1787.7,1787.3,5.59499]
[1743696398794,0.7725,1787.6,1787.3,11.18986]
[1743696399162,0.7725,1787.6,1787.3,5.59487]
[1743696399363,0.7725,1787.6,1787.3,11.18978]
[1743696399898,0.7725,1787.6,1787.4,5.59467]
[1743696400498,6.425,1787.7,1787.5,5.5944]
[1743696401002,0.7585,1787.5,1787.1,5.64559]
[1743696401164,5.59475,1787.4,1787.1,0.05]
[1743696401364,5.59475,1787.4,1787.1,5.64564]
[1743696401603,6.3532,1787.5,1787.1,5.64564]
[1743696401834,6.3532,1787.5,1787.1,11.24118]
[1743696401978,0.63532,1787.4,1787.1,0.05]
[1743696402184,0.7774,1787.2,1787.1,0.05]
[1743696402523,15.76474,1787.2,1787.1,0.05]
[1743696403226,10.1694,1787.2,1787.1,0.05]
[1743696403396,15.76474,1787.2,1787.1,0.05]
[1743696404386,10.1694,1787.2,1787.1,0.05]
[1743696404929,15.76474,1787.2,1787.1,0.05]
[1743696405582,16.18575345,1787.2,1787.1,0.05]
[1743696407910,7.59041345,1787.2,1787.1,0.05]
[1743696408246,7.59041345,1787.2,1787.1,5.64565]
[1743696408247,6.345,1787.2,1787.1,5.64565]
[1743696410851,6.345,1787.2,1787.1,0.05]
[1743696411053,7.1589,1787.2,1787.1,0.05]
[1743696411357,6.345,1787.2,1787.1,5.64565]
[1743696412764,6.345,1787.2,1787.1,0.05]
[1743696412972,7.1177,1787.2,1787.1,0.05]
[1743696413526,12.71304,1787.2,1787.1,0.05]
[1743696414628,18.66304,1787.2,1787.1,0.05]
[1743696414832,25.56904,1787.2,1787.1,0.05]
[1743696415029,51.936229,1787.2,1787.1,0.05]
[1743696415254,0.7844,1786.5,1786.1,0.8283]
[1743696415453,6.317,1786.4,1786.3,5.59805]
[1743696415654,6.317,1786.4,1786.2,5.59847]
[1743696416569,6.317,1786.4,1786.3,5.59816]
[1743696416769,6.317,1786.4,1786.2,5.59835]
[1743696417167,6.317,1786.4,1786.3,5.59816]
[1743696418976,40.296,1786.5,1786.4,5.59785]
[1743696419171,47.01307088,1786.5,1786.4,5.59785]
[1743696419346,46.593,1786.5,1786.4,5.59785]
[1743696421630,46.593,1786.5,1786.2,5.59833]
[1743696421873,3.0,1786.4,1786.1,0.05]
[1743696422076,3.0,1786.4,1786.2,5.59832]
[1743696422284,0.02914238,1786.3,1786.2,5.59832]
[1743696422873,1.22993109,1786.3,1786.1,5.64875]
[1743696423141,1.6529242,1786.3,1786.1,0.05]
[1743696423341,7.2511242,1786.3,1786.1,0.05]
[1743696423943,1.6529242,1786.3,1786.1,0.05]
[1743696424266,0.45463109,1786.3,1786.2,5.59847]
[1743696424492,3.45463109,1786.3,1786.2,5.59847]
[1743696425493,0.45463109,1786.3,1786.2,5.59847]
[1743696429169,0.02914238,1786.3,1786.2,6.40735564]
[1743696429370,0.02914238,1786.3,1786.2,7.6129562]
[1743696429602,2.38e-06,1786.3,1786.2,7.6129562]
[1743696429912,40.296,1786.5,1786.4,5.59785]
[1743696431585,41.0609,1786.5,1786.4,5.59785]
[1743696432376,44.0609,1786.5,1786.3,5.59802]
[1743696432909,3.0,1786.4,1786.2,11.19666]
[1743696433120,3.0,1786.4,1786.2,5.59833]
[1743696433784,3.0,1786.4,1786.3,5.59816]
[1743696435009,3.0,1786.4,1786.2,5.59833]
[1743696435178,3.0,1786.4,1786.2,11.19665]
[1743696435383,3.0,1786.4,1786.2,5.59832]
[1743696435771,3.0,1786.4,1786.1,5.64875]
[1743696436421,3.0,1786.4,1786.2,5.59846]
[1743696436776,3.0,1786.4,1786.2,5.59831]
[1743696437012,3.0,1786.4,1786.2,11.19667]
[1743696437234,3.0,1786.4,1786.3,5.59816]
[1743696437636,9.197,1786.4,1786.3,5.59816]
[1743696438547,9.197,1786.4,1786.2,5.59831]
[1743696438714,9.197,1786.4,1786.1,5.64859]
[1743696438715,9.993,1786.4,1786.1,5.64859]
[1743696439110,15.59097,1786.4,1786.1,5.64868]
[1743696439311,9.993,1786.4,1786.1,5.64868]
[1743696439559,9.993,1786.4,1786.1,11.24731]
[1743696439730,9.993,1786.4,1786.1,5.64863]
[1743696439912,0.9993,1786.3,1786.1,5.64863]
[1743696440130,0.9993,1786.3,1786.1,0.05]
[1743696440457,0.9993,1786.3,1786.1,5.64877]
[1743696440610,0.9993,1786.3,1786.1,0.05]
[1743696440813,0.9993,1786.3,1786.1,5.64872]
[1743696441554,0.9993,1786.3,1786.1,0.05]
[1743696441712,9.197,1786.4,1786.2,5.59847]
[1743696441913,40.296,1786.5,1786.4,5.59785]
[1743696442122,46.475,1786.5,1786.4,5.59785]
[1743696443641,0.7794,1786.4,1786.2,5.59842]
[1743696443845,3.7794,1786.4,1786.2,5.59838]
[1743696444024,3.7794,1786.4,1786.3,5.59816]
[1743696444440,3.7794,1786.4,1786.2,5.59835]
[1743696444656,3.7794,1786.4,1786.3,5.59816]
[1743696446610,3.0,1786.4,1786.3,5.59816]
[1743696447019,40.296,1786.5,1786.4,5.59785]
[1743696447223,46.455,1786.5,1786.4,5.59785]
[1743696447469,49.455,1786.5,1786.4,5.59785]
[1743696447970,46.455,1786.5,1786.4,5.59785]
[1743696448879,40.296,1786.5,1786.4,5.59785]
[1743696449024,41.0955,1787.2,1787.0,5.59597]
[1743696449224,6.152,1787.1,1787.0,5.59597]
[1743696449434,40.314,1787.2,1787.1,5.59565]
[1743696449721,46.467,1787.2,1787.0,5.59597]
[1743696449958,46.467,1787.2,1787.0,11.1918]
[1743696450267,46.467,1787.2,1787.0,11.1917]
[1743696450442,3.0,1787.1,1787.0,5.59583]
[1743696451726,3.0,1787.1,1786.8,5.59649]
[1743696451950,0.3,1787.0,1786.9,5.59628]
[1743696452533,0.3,1787.0,1786.8,5.59645]
[1743696453456,0.3,1787.0,1786.4,5.59785]
[1743696453457,3.0,1786.7,1786.4,5.59785]
[1743696453658,3.0,1786.5,1786.4,5.59785]
[1743696453863,3.0,1786.5,1786.3,5.59814]
[1743696454172,3.0,1786.5,1786.4,5.59785]
[1743696454676,8.59755,1786.5,1786.2,11.19675]
[1743696454836,8.59755,1786.5,1786.1,0.05]
[1743696454837,8.59847,1786.2,1786.1,0.05]
[1743696455037,18.99930194,1786.2,1786.1,0.05]
[1743696455677,19.79220194,1786.2,1786.1,0.05]
[1743696456035,20.76389896,1786.2,1786.1,0.05]
[1743696456237,30.06989896,1786.2,1786.1,0.05]
[1743696456432,0.7931,1785.8,1785.5,5.60062]
[1743696456742,0.7931,1785.8,1785.3,0.7896]
[1743696456743,3.0,1785.6,1785.4,5.60093]
[1743696456981,3.0,1785.6,1785.4,5.6008]
[1743696457148,3.0,1785.6,1785.4,11.20162]
[1743696457348,3.0,1785.6,1785.4,11.20166]
[1743696457562,3.0,1785.6,1785.4,5.6008]
[1743696457772,3.0,1785.6,1785.3,6.39086]
[1743696457773,3.0,1785.6,1785.3,5.60126]
[1743696458071,3.42657034,1785.6,1785.3,5.60126]
[1743696458573,3.42657034,1785.6,1785.3,11.20241]
[1743696458729,3.42657034,1785.6,1785.3,5.60115]
[1743696459170,3.356,1785.5,1785.3,5.60115]
[1743696459387,3.67825703,1785.5,1785.2,5.6015]
[1743696460076,3.67825703,1785.5,1785.1,6.46939]
[1743696460077,9.27892703,1785.5,1785.1,12.0712]
[1743696460380,0.67825703,1785.5,1785.2,5.60137]
[1743696460681,0.67825703,1785.5,1785.3,5.60119]
[1743696462397,0.67825703,1785.5,1785.2,5.60137]
[1743696462587,3.0,1785.3,1785.1,5.65188]
[1743696462787,6.084,1785.2,1785.1,5.65188]
[1743696463600,6.084,1785.2,1785.1,0.05]
[1743696463801,16.08881,1785.2,1785.1,0.05]
[1743696464521,10.4872,1785.2,1785.1,0.05]
[1743696464740,16.08881,1785.2,1785.1,0.05]
[1743696464891,10.4872,1785.2,1785.1,0.05]
[1743696465293,9.078,1785.2,1785.1,5.65192]
[1743696465610,9.078,1785.2,1785.1,0.05]
[1743696465812,9.8967,1785.2,1785.1,0.05]
[1743696465991,9.8967,1785.2,1785.1,5.65192]
[1743696466188,3.0,1785.2,1785.1,5.65192]
[1743696466386,6.079,1785.2,1785.1,6.41522]
[1743696467146,6.079,1785.2,1785.1,5.65182]
[1743696469237,6.079,1785.2,1785.1,7.561012]
[1743696469441,40.331,1785.3,1785.2,5.60161]
[1743696469652,46.395,1785.3,1785.2,5.60161]
[1743696470341,40.331,1785.3,1785.2,5.60161]
[1743696471219,6.059,1785.5,1785.4,6.41758]
[1743696472011,41.1527,1786.1,1785.4,6.41758]
[1743696472215,6.051,1786.0,1785.9,5.59927]
[1743696472520,40.334,1786.1,1786.0,5.5991]
[1743696472858,6.047,1786.1,1786.0,5.5991]
[1743696473811,6.047,1786.1,1786.0,6.4119]
[1743696474049,0.7836,1786.7,1786.4,5.59767]
[1743696474233,6.056,1786.6,1786.4,5.59767]
[1743696474933,0.43013989,1786.7,1786.5,5.59753]
[1743696475135,40.333,1786.8,1786.7,5.59691]
[1743696475340,46.388,1786.8,1786.7,5.59691]
[1743696476564,46.382,1786.8,1786.7,6.37611]
[1743696477689,46.382,1786.8,1786.6,5.59707]
[1743696477882,46.382,1786.8,1786.6,11.19412]
[1743696478386,46.382,1786.8,1786.6,5.59705]
[1743696478793,49.382,1786.8,1786.7,5.59691]
[1743696479165,49.382,1786.8,1786.6,5.59705]
[1743696479493,49.382,1786.8,1786.6,11.19407]
[1743696479990,49.382,1786.8,1786.7,5.59691]
[1743696480288,46.382,1786.8,1786.7,5.59691]
[1743696480488,46.382,1786.8,1786.7,6.36951]
[1743696481565,0.792,1787.3,1786.8,5.59646]
[1743696481754,6.026,1787.3,1787.1,5.59546]
[1743696482479,11.62113,1787.3,1786.8,5.5964]
[1743696482685,3.0,1787.0,1786.7,5.59685]
[1743696482881,3.0,1786.8,1786.6,5.597]
[1743696483491,3.9029,1786.8,1786.5,6.3974]
[1743696483710,3.0,1786.6,1786.2,12.00916]
[1743696483893,6.025,1786.5,1786.3,5.59793]
[1743696484058,6.05414477,1786.5,1786.3,5.59793]
[1743696484262,8.59796,1786.4,1786.0,5.599]
[1743696484498,7.04907887,1786.3,1785.9,12.01097]
[1743696484773,1.47994364,1786.3,1786.0,5.59906]
[1743696484973,1.47994364,1786.3,1785.9,5.59925]
[1743696485169,1.47994364,1786.3,1785.7,6.42943]
[1743696485515,9.023,1786.2,1786.1,5.59879]
[1743696485716,9.023,1786.2,1785.9,5.59938]
[1743696485861,9.38709,1786.1,1785.7,5.59991]
[1743696486265,5.62830477,1786.0,1785.6,5.60025]
[1743696486557,11.22761477,1786.0,1785.5,6.41606]
[1743696486763,8.59943,1785.9,1785.5,5.60056]
[1743696487118,6.05814477,1785.8,1785.7,6.35684]
[1743696487470,6.05814477,1785.8,1785.7,5.60004]
[1743696488369,6.05814477,1785.8,1785.6,5.60018]
[1743696488961,6.05814477,1785.8,1785.6,11.20039]
[1743696489299,6.05814477,1785.8,1785.7,5.60004]
[1743696489500,6.05814477,1785.8,1785.6,5.60018]
[1743696489696,6.05814477,1785.8,1785.7,5.60004]
[1743696490002,6.05814477,1785.8,1785.6,11.20043]
[1743696490562,6.05814477,1785.8,1785.5,5.60056]
[1743696490768,8.60018,1785.7,1785.3,5.60114]
[1743696491012,18.46930194,1785.7,1785.3,5.60114]
[1743696491313,3.0,1785.3,1785.1,0.05]
[1743696491517,6.028,1785.2,1785.1,5.65177]
[1743696491681,6.05714477,1785.2,1785.1,5.65177]
[1743696491872,0.02914477,1785.2,1785.1,6.777158]
[1743696492075,0.02914477,1785.2,1785.1,7.541258]
[1743696492278,0.02914477,1785.2,1785.1,7.59726917]
[1743696492479,0.02914477,1785.2,1785.1,7.541258]
[1743696492679,4.77e-06,1785.2,1785.1,7.541258]
[1743696492882,6.033,1785.5,1785.4,6.43268]
[1743696493080,6.033,1785.5,1785.4,7.636065]
[1743696493326,6.033,1785.5,1785.3,5.60111]
[1743696493609,6.033,1785.5,1785.4,5.60098]
[1743696494016,0.8074,1785.8,1785.6,5.60035]
[1743696494311,6.031,1785.7,1785.6,5.60035]
[1743696494911,6.028,1785.7,1785.5,0.8121]
[1743696495097,6.028,1785.7,1785.6,5.60016]
[1743696497491,8.95,1786.0,1785.6,5.60016]
[1743696497492,3.0,1786.0,1785.9,5.59941]
[1743696497698,9.01,1786.0,1785.9,5.59941]
[1743696498126,9.01,1786.0,1785.7,5.60001]
[1743696498316,0.776,1785.9,1785.6,5.60026]
[1743696498631,0.776,1785.9,1785.5,5.60064]
[1743696498632,10.27644,1785.9,1785.5,5.60064]
[1743696498816,10.27644,1785.9,1785.5,11.20114]
[1743696499017,3.0,1785.5,1785.1,0.05]
[1743696499217,3.0,1785.3,1785.1,0.05]
[1743696499404,3.0,1785.3,1785.1,5.65179]
[1743696499618,5.95,1785.5,1785.3,5.60129]
[1743696499819,6.029,1785.5,1785.4,0.8047]
[1743696500145,6.029,1785.5,1785.4,6.40568]
[1743696500440,5.95,1785.9,1785.8,5.59973]
[1743696500744,6.033,1785.9,1785.8,5.59973]
[1743696501239,6.033,1785.9,1785.7,5.59997]
[1743696501539,5.60015,1785.7,1785.3,5.60111]
[1743696501742,6.540925,1785.7,1785.2,5.60155]
[1743696501918,0.7603,1785.4,1785.2,5.60155]
[1743696502119,6.043,1785.3,1785.2,5.60155]
[1743696503240,6.043,1785.3,1785.1,5.6519]
[1743696503447,6.8021,1785.3,1785.1,5.65176]
[1743696504045,6.8021,1785.3,1785.1,0.05]
[1743696504234,6.8021,1785.3,1785.1,5.65187]
[1743696504408,6.043,1785.3,1785.1,5.65176]
[1743696504608,6.043,1785.3,1785.2,6.37501]
[1743696504822,6.036,1785.4,1785.3,5.60129]
[1743696505050,5.95,1785.8,1785.1,0.05]
[1743696505217,5.95,1785.8,1785.5,5.60057]
[1743696505218,6.035,1785.7,1785.5,5.60057]
[1743696505409,6.035,1785.7,1785.6,5.60035]
[1743696506334,6.035,1785.7,1785.6,6.720434]
[1743696507047,6.035,1785.7,1785.6,5.60035]
[1743696510312,6.035,1785.7,1785.5,5.60049]
[1743696510862,11.63519,1785.7,1785.3,5.60128]
[1743696511011,3.0,1785.4,1785.1,5.65182]
[1743696511216,6.013,1785.3,1785.2,5.60151]
[1743696511624,6.013,1785.3,1785.2,5.60161]
[1743696511831,6.013,1785.3,1785.2,6.726953]
[1743696513051,6.013,1785.3,1785.2,7.536053]
[1743696513575,6.013,1785.3,1785.1,0.05]
[1743696513576,6.7847,1785.3,1785.1,0.05]
[1743696513940,13.64214194,1785.2,1785.1,0.05]
[1743696514238,3.7717,1784.7,1784.4,5.60397]
[1743696514556,3.7717,1784.7,1784.4,11.20793]
[1743696514557,6.027,1784.6,1784.4,11.20793]
[1743696514750,6.027,1784.6,1784.4,5.60396]
[1743696515148,6.027,1784.6,1784.4,11.20791]
[1743696515356,6.027,1784.6,1784.5,5.60381]
[1743696516290,6.021,1784.7,1784.6,6.42739]
[1743696518095,6.8429,1784.7,1784.4,5.60393]
[1743696519144,6.8429,1784.7,1784.4,11.20792]
[1743696519592,6.8429,1784.7,1784.4,5.60393]
[1743696519809,6.8429,1784.7,1784.2,5.60471]
[1743696519810,8.60364,1784.6,1784.2,5.60471]
[1743696519959,0.860364,1784.5,1784.2,5.60471]
[1743696520361,0.8095,1784.4,1784.1,0.05]
[1743696520599,6.001,1784.3,1784.2,5.60452]
[1743696521169,14.60545,1784.3,1784.1,0.05]
[1743696521493,9.001,1784.3,1784.1,5.65506]
[1743696521697,9.001,1784.3,1784.1,0.05]
[1743696521993,9.73293487,1784.3,1784.1,0.05]
[1743696522204,15.33738487,1784.3,1784.1,0.05]
[1743696522675,3.0,1784.2,1784.1,5.65481]
[1743696522882,3.0,1784.2,1784.1,0.05]
[1743696523499,3.0,1784.2,1784.1,5.65506]
[1743696524095,3.0,1784.2,1784.1,0.05]
[1743696524475,3.0,1784.2,1784.1,5.65506]
[1743696524878,3.0,1784.2,1784.1,0.05]
[1743696525487,8.60475,1784.2,1784.1,0.05]
[1743696525687,9.36165,1784.2,1784.1,0.05]
[1743696526276,3.7569,1784.2,1784.1,0.05]
[1743696527084,15.86165,1784.2,1784.1,0.05]
[1743696527285,18.80489,1784.2,1784.1,0.05]
[1743696527721,16.28082132,1784.2,1784.1,0.05]
[1743696528091,22.27782132,1784.2,1784.1,0.05]
[1743696528294,21.72782132,1784.2,1784.1,0.05]
[1743696532028,5.972,1784.3,1784.2,5.60454]
[1743696533529,40.363,1784.4,1784.3,5.60443]
[1743696533683,49.33,1784.4,1784.3,5.60443]
[1743696534626,49.33,1784.4,1784.3,6.40383]
[1743696534921,0.42127272,1784.7,1784.6,5.60349]
[1743696535084,5.961,1784.7,1784.6,5.60349]
[1743696535283,5.961,1784.7,1784.5,5.60381]
[1743696535284,5.961,1784.7,1784.4,5.6041]
[1743696535928,5.961,1784.7,1784.4,5.60397]
[1743696536128,5.961,1784.7,1784.5,5.60367]
[1743696536311,5.961,1784.7,1784.5,11.20733]
[1743696536513,5.961,1784.7,1784.5,5.60366]
[1743696537968,5.961,1784.7,1784.5,11.20734]
[1743696538149,6.38156349,1784.7,1784.5,11.20734]
[1743696538531,6.38156349,1784.7,1784.4,5.60382]
[1743696538731,6.38156349,1784.7,1784.5,5.60366]
[1743696539266,6.38156349,1784.7,1784.5,11.20736]
[1743696539465,6.38156349,1784.7,1784.5,5.60366]
[1743696539668,6.38156349,1784.7,1784.6,5.60349]
[1743696539977,0.42056349,1784.7,1784.6,5.60349]
[1743696540271,5.933,1784.7,1784.5,5.60377]
[1743696540984,5.933,1784.7,1784.1,0.05]
[1743696541166,5.06517909,1784.6,1784.3,5.60431]
[1743696541323,5.60381,1784.5,1784.1,6.43445]
[1743696541528,6.37195,1784.2,1784.1,0.05]
[1743696541728,6.7002,1784.2,1784.1,0.05]
[1743696541956,5.96214715,1784.2,1784.1,0.05]
[1743696542360,11.56689715,1784.2,1784.1,0.05]
[1743696542877,11.98740131,1784.2,1784.1,0.05]
[1743696543508,6.38265131,1784.2,1784.1,0.05]
[1743696543696,0.44965131,1784.2,1784.1,0.05]
[1743696544000,5.96314715,1784.2,1784.1,5.65506]
[1743696544295,10.34234506,1784.2,1784.1,0.05]
[1743696544500,16.73149506,1784.2,1784.1,0.05]